bitfinex/quotes_SOLUSD_20220117
["timestamp","ask_amount","ask_price","bid_price","bid_amount"]
[1642435914795,37.19169958,141.2,141.03,19.0721]
[1642435914995,35.4355,141.2,141.04,0.25]
[1642435915195,35.4355,141.2,141.04,8.69]
[1642435915396,21.34794594,141.19,141.05,44.10589757]
[1642435915795,27.34794594,141.19,141.05,44.10589757]
[1642435915996,10.6295,141.18,141.06,10.6301]
[1642435916197,515.82389187,141.23,141.06,10.6301]
[1642435916395,521.82389187,141.23,141.07,0.25]
[1642435916695,520.06769229,141.23,141.07,0.25]
[1642435916893,1.75619958,141.22,141.05,43.85589757]
[1642435917096,22.22596166,141.22,141.05,52.29589757]
[1642435917296,28.22596166,141.22,141.05,52.29589757]
[1642435917496,26.46976208,141.22,141.05,52.29589757]
[1642435917695,1.75619958,141.21,141.05,52.29589757]
[1642435917893,7.75619958,141.21,141.05,52.29589757]
[1642435918094,6.0,141.21,141.05,52.29589757]
[1642435918494,26.46976208,141.22,141.05,52.29589757]
[1642435918695,7.52801506,141.19,141.06,10.6302]
[1642435918897,13.52801506,141.19,141.06,10.6302]
[1642435919097,13.52801506,141.19,141.07,0.25]
[1642435919296,478.63959229,141.23,141.06,0.25]
[1642435919699,10.6273,141.21,141.09,10.6283]
[1642435919899,10.6273,141.21,141.1,0.25]
[1642435920898,4.11645883,141.2,141.11,46.22069219]
[1642435921098,484.63959229,141.23,141.11,46.22069219]
[1642435921302,484.63959229,141.23,141.12,0.25]
[1642435921500,484.63959229,141.23,141.07,8.44]
[1642435921699,6.0,141.23,141.07,8.44]
[1642435921899,6.0,141.23,141.09,10.628]
[1642435921900,10.6261,141.22,141.09,10.628]
[1642435922101,10.8761,141.22,140.98,94.7222]
[1642435922301,24.02929958,141.22,141.05,8.44]
[1642435922504,37.27603803,141.21,141.06,46.65769205]
[1642435922700,37.27603803,141.21,141.06,44.33677005]
[1642435922905,10.6332,141.15,141.06,44.33677005]
[1642435923402,16.6332,141.15,141.06,44.33677005]
[1642435924803,16.6332,141.15,141.03,10.6327]
[1642435925202,16.6332,141.15,141.04,0.25]
[1642435925503,70.36,141.14,141.01,41.8535]
[1642435925802,10.6353,141.11,141.01,60.18470045]
[1642435926003,3.23886069,141.1,141.01,22.7796]
[1642435926203,3.23886069,141.1,140.96,31.5152]
[1642435926502,0.25,141.09,140.96,23.0752]
[1642435926702,70.61,141.09,140.96,23.0752]
[1642435926902,8.44,141.08,140.97,42.40004108]
[1642435927103,22.75926427,141.07,140.97,42.40004108]
[1642435927303,19.0767,141.08,140.97,42.40004108]
[1642435927507,25.0767,141.08,140.97,42.40004108]
[1642435927803,25.0767,141.08,140.98,0.25]
[1642435928203,6.0,141.08,140.98,0.25]
[1642435928404,8.44,141.12,140.98,0.25]
[1642435929202,19.0737,141.12,140.98,10.8867]
[1642435929402,19.0737,141.12,140.98,10.6367]
[1642435929604,19.0737,141.12,140.97,42.40004108]
[1642435929807,25.0737,141.12,140.97,42.40004108]
[1642435930212,26.82989958,141.12,140.96,23.0752]
[1642435930806,10.6405,141.07,140.96,22.0752]
[1642435931007,70.36,141.06,140.96,22.0752]
[1642435931209,70.36,141.06,140.92,77.12206885]
[1642435931210,83.11361993,141.06,140.92,77.12206885]
[1642435931407,89.62961993,141.06,140.92,2.01136885]
[1642435931606,1.75619958,141.05,140.92,2.01136885]
[1642435931806,8.69,141.04,140.92,2.01136885]
[1642435932006,10.643,141.03,140.92,2.01136885]
[1642435932206,34.69507921,141.02,140.91,37.36160137]
[1642435932407,40.94507921,141.02,140.91,37.36160137]
[1642435933007,40.94507921,141.02,140.87,2.01136885]
[1642435933205,40.94507921,141.02,140.88,0.25]
[1642435933610,10.6451,140.99,140.84,90.96146885]
[1642435933808,16.6451,140.99,140.84,90.96146885]
[1642435934010,4.06361993,140.98,140.85,48.63499569]
[1642435934210,70.36,140.97,140.85,48.63499569]
[1642435934712,22.33277799,140.93,140.84,80.31506885]
[1642435934910,22.33277799,140.93,140.84,2.01136885]
[1642435935113,28.33277799,140.93,140.84,2.01136885]
[1642435935310,0.25,140.92,140.84,2.01136885]
[1642435935712,10.6512,140.91,140.84,2.01136885]
[1642435935913,10.6512,140.91,140.81,3.91460359]
[1642435936114,10.6512,140.91,140.77,2.01136885]
[1642435936314,10.6512,140.91,140.78,43.14328071]
[1642435936612,14.44,140.95,140.78,43.14328071]
[1642435936815,14.44,140.95,140.8,10.6495]
[1642435936816,10.6483,140.93,140.8,10.6495]
[1642435937219,8.44,140.92,140.78,43.14328071]
[1642435937423,21.41550973,140.91,140.78,43.14328071]
[1642435937624,78.8,140.9,140.78,43.14328071]
[1642435938023,0.25,140.89,140.78,43.14328071]
[1642435938241,8.44,140.88,140.78,43.14328071]
[1642435938446,8.90318941,140.87,140.78,43.14328071]
[1642435938644,10.6565,140.85,140.7,2.01136885]
[1642435938844,8.69,140.84,140.7,2.01136885]
[1642435939245,14.69,140.84,140.7,2.01136885]
[1642435939445,70.36,140.83,140.7,2.01136885]
[1642435939644,8.90318941,140.79,140.71,42.84800406]
[1642435939845,77.261,140.8,140.71,42.84800406]
[1642435940047,8.44,140.81,140.71,42.84800406]
[1642435940252,8.44,140.83,140.71,42.84800406]
[1642435940654,14.44,140.83,140.71,42.84800406]
[1642435940847,14.44,140.83,140.74,45.6496205]
[1642435941249,10.6588,140.8,140.67,10.6594]
[1642435941447,19.2888,140.8,140.65,48.0678]
[1642435941651,8.44,140.79,140.65,48.0678]
[1642435941850,14.44,140.79,140.65,48.0678]
[1642435942350,0.25,140.78,140.68,36.07216264]
[1642435942552,70.36,140.78,140.73,44.29678872]
[1642435942754,78.8,140.78,140.73,44.29678872]
[1642435942951,84.8,140.78,140.73,44.29678872]
[1642435943153,14.44,140.78,140.73,44.29678872]
[1642435943352,25.1027,140.78,140.73,44.29678872]
[1642435943552,19.1027,140.78,140.74,41.0500179]
[1642435943752,19.1027,140.78,140.73,44.29678872]
[1642435943953,10.6627,140.78,140.73,44.29678872]
[1642435944754,10.6627,140.78,140.74,35.69056137]
[1642435945155,11.9576669,140.8,140.74,35.69056137]
[1642435945556,0.0092669,140.8,140.75,0.25]
[1642435945955,0.0092669,140.8,140.75,8.064]
[1642435946956,0.0092669,140.8,140.75,0.25]
[1642435947757,0.0092669,140.8,140.73,44.29678872]
[1642435948558,1.75619958,140.8,140.73,44.29678872]
[1642435948759,22.63810289,140.79,140.73,44.29678872]
[1642435948959,35.5386,140.79,140.73,44.29678872]
[1642435949158,1.75619958,140.78,140.73,44.29678872]
[1642435949359,7.75619958,140.78,140.73,44.29678872]
[1642435949762,6.0,140.78,140.73,44.29678872]
[1642435950261,111.8986,140.79,140.73,44.29678872]
[1642435950760,10.6616,140.78,140.73,44.29678872]
[1642435951359,43.972,140.82,140.73,44.29678872]
[1642435951360,8.44,140.86,140.73,44.29678872]
[1642435951761,10.6557,140.83,140.73,44.29678872]
[1642435951961,10.6557,140.83,140.74,37.78994377]
[1642435952161,1.75619958,140.86,140.74,38.03994377]
[1642435952361,23.6338254,140.87,140.74,38.03994377]
[1642435953161,10.6541,140.86,140.75,10.6538]
[1642435953363,8.44,140.9,140.76,0.25]
[1642435953764,14.44,140.9,140.76,0.25]
[1642435953963,6.0,140.9,140.76,0.25]
[1642435954166,25.05821414,140.92,140.76,8.69]
[1642435954362,25.05821414,140.92,140.77,44.80060038]
[1642435954762,450.89894871,140.94,140.78,0.25]
[1642435955163,462.7757844,140.94,140.78,0.25]
[1642435955364,10.6491,140.92,140.78,10.9016]
[1642435955565,450.89894871,140.94,140.79,8.44]
[1642435955763,450.89894871,140.94,140.8,43.4220063]
[1642435955965,451.91585537,140.94,140.8,51.8620063]
[1642435956364,461.54664871,140.94,140.8,51.8620063]
[1642435956764,467.54664871,140.94,140.8,8.44]
[1642435956965,0.31326982,140.91,140.67,2.01136885]
[1642435957165,70.36,140.89,140.72,2.01136885]
[1642435957365,0.30854694,140.86,140.72,2.01136885]
[1642435957569,10.6609,140.86,140.72,2.01136885]
[1642435957765,22.97791906,140.85,140.74,40.72234426]
[1642435957966,8.44,140.84,140.72,2.01136885]
[1642435958169,10.19619958,140.84,140.64,8.44]
[1642435958369,0.25,140.83,140.64,8.44]
[1642435958567,19.0987,140.82,140.63,221.1177]
[1642435958767,0.25,140.81,140.64,70.36]
[1642435958967,70.36,140.8,140.7,35.3554668]
[1642435959169,70.36,140.8,140.63,221.1177]
[1642435959368,15.06952916,140.79,140.63,221.1177]
[1642435959568,70.36,140.78,140.63,100.074]
[1642435959768,10.6638,140.74,140.63,100.074]
[1642435959968,10.6638,140.74,140.63,21.3824]
[1642435960170,10.6638,140.74,140.64,38.65381685]
[1642435960368,16.6638,140.74,140.64,38.65381685]
[1642435961169,10.6638,140.74,140.64,38.65381685]
[1642435962373,10.6638,140.74,140.65,0.25]
[1642435962571,10.6638,140.74,140.64,38.65381685]
[1642435963778,22.29187397,140.81,140.64,38.65381685]
[1642435963779,62.53755202,140.91,140.65,70.36]
[1642435963978,10.10232265,140.85,140.65,80.53059146]
[1642435964177,10.10232265,140.85,140.65,86.53059146]
[1642435964378,8.44,140.85,140.65,86.53059146]
[1642435964802,20.42622937,140.84,140.66,0.25]
[1642435965005,10.6582,140.8,140.66,19.3482]
[1642435965205,10.6582,140.8,140.67,70.36]
[1642435965407,10.6582,140.8,140.68,8.69]
[1642435966106,10.6582,140.8,140.69,49.51729022]
[1642435966306,16.6582,140.8,140.7,0.25]
[1642435966908,14.06564027,140.86,140.7,0.25]
[1642435967106,1.66232265,140.88,140.7,29.64039146]
[1642435967306,1.66232265,140.88,140.7,35.64039146]
[1642435967507,7.28606437,140.88,140.7,35.64039146]
[1642435968211,5.62374172,140.88,140.71,2.01136885]
[1642435968510,22.27584172,140.88,140.72,52.99290019]
[1642435968708,18.0320413,140.88,140.72,52.99290019]
[1642435968909,8.69,140.87,140.72,44.55290019]
[1642435969209,8.69,140.87,140.72,44.30290019]
[1642435969408,13.56008472,140.86,140.72,44.30290019]
[1642435969609,19.41171044,140.85,140.72,44.30290019]
[1642435969810,19.41171044,140.85,140.71,2.01136885]
[1642435969811,10.6588,140.83,140.71,2.01136885]
[1642435970211,0.25,140.82,140.71,2.01136885]
[1642435970612,0.25,140.82,140.68,74.1167]
[1642435970912,6.90828956,140.82,140.69,45.82260335]
[1642435971314,0.25,140.82,140.69,45.82260335]
[1642435971512,10.6625,140.79,140.69,45.82260335]
[1642435973312,16.6625,140.79,140.69,45.82260335]
[1642435973913,70.36,140.78,140.69,45.57260335]
[1642435974113,70.61,140.78,140.69,45.57260335]
[1642435974313,10.6627,140.76,140.69,45.57260335]
[1642435974517,51.462,140.75,140.65,2.01136885]
[1642435974718,191.462,140.74,140.65,6.885e-05]
[1642435974919,78.8,140.73,140.62,3.99423261]
[1642435975217,78.8,140.73,140.62,0.07962902]
[1642435975418,22.5752169,140.71,140.6,3.91460359]
[1642435975620,140.0,140.7,140.52,512.5995086]
[1642435975819,150.44619958,140.7,140.52,9.97453489]
[1642435976019,154.69,140.7,140.52,9.97453489]
[1642435976223,1.75619958,140.69,140.47,887.46077627]
[1642435976421,8.44,140.68,140.49,8.44]
[1642435976621,10.6742,140.65,140.51,39.88533862]
[1642435977520,8.44,140.64,140.51,39.88533862]
[1642435977720,10.6735,140.61,140.51,39.88533862]
[1642435978120,8.44,140.64,140.51,39.88533862]
[1642435978319,10.4288,140.78,140.51,39.88533862]
[1642435978521,69.6242,140.77,140.52,147.7292]
[1642435978724,70.36,140.75,140.52,147.9792]
[1642435978923,46.93425072,140.77,140.52,153.9792]
[1642435979120,10.6674,140.7,140.56,10.6674]
[1642435979321,10.6674,140.7,140.57,44.94853614]
[1642435979524,16.6674,140.7,140.57,44.94853614]
[1642435979722,16.6674,140.71,140.57,44.94853614]
[1642435979924,8.44,140.72,140.57,44.94853614]
[1642435979925,8.44,140.77,140.58,140.31481713]
[1642435980123,10.7749,140.79,140.63,0.32151703]
[1642435980326,10.6594,140.78,140.63,17.68151703]
[1642435980723,10.6594,140.78,140.64,1.98475252]
[1642435980924,10.6594,140.78,140.64,10.42475252]
[1642435981428,39.01688044,140.81,140.68,42.26194842]
[1642435981625,10.658,140.8,140.68,42.26194842]
[1642435981826,10.658,140.8,140.69,0.25]
[1642435982041,3.67871769,140.81,140.69,8.811]
[1642435982628,34.7937998,140.85,140.69,8.811]
[1642435982827,20.8349002,140.82,140.7,10.6585]
[1642435983027,20.8349002,140.82,140.71,46.65807855]
[1642435983028,26.8349002,140.82,140.71,46.65807855]
[1642435983429,97.1949002,140.82,140.7,10.6585]
[1642435983629,97.1949002,140.82,140.64,8.44]
[1642435983829,70.36,140.8,140.63,102.1575]
[1642435984033,10.6616,140.75,140.64,10.6623]
[1642435984230,10.6616,140.75,140.63,102.1575]
[1642435984430,10.6616,140.75,140.64,39.72571934]
[1642435984630,35.0437998,140.74,140.64,39.72571934]
[1642435984831,41.0437998,140.74,140.64,39.72571934]
[1642435985231,10.6661,140.71,140.64,39.72571934]
[1642435985632,20.8349002,140.71,140.61,24.0485]
[1642435985834,26.8349002,140.71,140.55,8.44]
[1642435986032,6.0,140.71,140.55,8.44]
[1642435986232,16.6643,140.71,140.59,10.6652]
[1642435986435,16.6643,140.71,140.53,204.6675]
[1642435986436,0.25,140.7,140.54,1.73054608]
[1642435986636,8.69,140.7,140.53,204.6675]
[1642435986834,14.69,140.7,140.54,0.25]
[1642435987034,39.44964858,140.69,140.54,40.93886526]
[1642435987534,0.25,140.68,140.54,40.93886526]
[1642435988137,10.669,140.66,140.54,40.93886526]
[1642435988335,16.669,140.66,140.54,40.93886526]
[1642435988536,87.029,140.66,140.54,40.93886526]
[1642435988836,16.669,140.66,140.54,40.93886526]
[1642435989239,26.84805142,140.66,140.54,40.93886526]
[1642435989435,32.84805142,140.66,140.54,40.68886526]
[1642435989638,10.6731,140.62,140.54,40.68886526]
[1642435989838,50.12274858,140.62,140.54,40.68886526]
[1642435990040,10.6731,140.62,140.51,24.0016]
[1642435990440,10.6731,140.62,140.52,10.6715]
[1642435990441,9.6731,140.62,140.52,10.6715]
[1642435990865,9.6731,140.62,140.53,0.25]
[1642435991066,6.0,140.66,140.53,36.12264816]
[1642435991268,14.44,140.68,140.54,0.25]
[1642435991567,8.44,140.7,140.54,0.25]
[1642435991767,389.97281443,140.72,140.55,78.8]
[1642435992164,389.97281443,140.72,140.56,0.25]
[1642435992364,8.44,140.71,140.55,1.73054608]
[1642435992565,8.44,140.71,140.51,24.0016]
[1642435992566,0.32200208,140.67,140.51,0.45]
[1642435992765,8.44,140.66,140.51,0.45]
[1642435992965,70.36,140.65,140.51,0.45]
[1642435993165,8.44,140.64,140.51,0.45]
[1642435993369,78.70427833,140.63,140.51,0.45]
[1642435993569,8.44,140.62,140.51,0.45]
[1642435993771,0.25,140.61,140.51,0.45]
[1642435993974,8.44,140.6,140.51,0.45]
[1642435994173,10.19619958,140.6,140.51,0.45]
[1642435994376,36.32416506,140.59,140.51,0.45]
[1642435994571,8.44,140.58,140.51,0.45]
[1642435994771,0.25,140.57,140.51,0.45]
[1642435994971,8.44,140.56,140.51,0.45]
[1642435995172,19.1196,140.56,140.5,0.5]
[1642435995371,19.55453494,140.55,140.5,0.5]
[1642435995571,70.36,140.54,140.5,0.5]
[1642435995772,70.36,140.54,140.4,26.9065]
[1642435995773,76.36,140.54,140.4,26.9065]
[1642435995972,75.86,140.54,140.39,72.2421]
[1642435996371,6.0,140.54,140.39,78.2421]
[1642435996571,485.44517857,140.63,140.4,78.8]
[1642435996772,70.36,140.6,140.4,14.44]
[1642435996975,8.44,140.6,140.4,14.44]
[1642435997174,8.44,140.6,140.39,78.6311]
[1642435997371,22.78527926,140.6,140.41,42.67486732]
[1642435997773,8.44,140.6,140.41,51.11486732]
[1642435997974,8.44,140.6,140.42,70.36]
[1642435998173,8.44,140.6,140.43,8.44]
[1642435998473,8.44,140.6,140.44,70.36]
[1642435998676,485.44517857,140.63,140.45,52.49470699]
[1642435999274,485.44517857,140.63,140.49,0.31931772]
[1642435999475,485.44517857,140.63,140.5,8.44]
[1642435999975,39.00303578,140.62,140.48,39.42139806]
[1642436000176,485.44517857,140.63,140.48,39.42139806]
[1642436000374,1.75619958,140.67,140.48,39.42139806]
[1642436000574,8.44,140.69,140.48,39.42139806]
[1642436000779,10.19619958,140.69,140.48,118.22139806]
[1642436000979,10.669,140.65,140.48,39.42139806]
[1642436001183,16.44327906,140.64,140.48,39.42139806]
[1642436001378,26.63947864,140.64,140.48,39.42139806]
[1642436001579,1.75619958,140.63,140.48,39.42139806]
[1642436001779,39.18542094,140.61,140.48,39.42139806]
[1642436001985,10.673,140.6,140.48,39.42139806]
[1642436002378,19.113,140.6,140.48,39.42139806]
[1642436002878,25.113,140.6,140.48,39.42139806]
[1642436004384,1.75619958,140.59,140.48,39.42139806]
[1642436004587,10.6779,140.56,140.48,39.42139806]
[1642436006282,36.68720493,140.55,140.48,39.42139806]
[1642436006480,10.6773,140.54,140.48,39.42139806]
[1642436006682,10.6773,140.54,140.42,24.0664]
[1642436007284,10.6773,140.54,140.41,8.44]
[1642436007883,10.6773,140.54,140.42,35.76837948]
[1642436008282,10.6773,140.54,140.42,106.12837948]
[1642436008486,10.6745,140.58,140.42,116.80477948]
[1642436008682,8.44,140.59,140.42,116.80477948]
[1642436008882,8.44,140.63,140.43,8.44]
[1642436009082,1.75619958,140.63,140.43,16.375]
[1642436009284,8.44,140.66,140.43,16.375]
[1642436009482,381.9404615,140.65,140.44,0.31654779]
[1642436009683,381.9404615,140.65,140.49,10.97377878]
[1642436009890,371.2710615,140.65,140.5,8.69]
[1642436010484,371.2710615,140.65,140.51,113.43024975]
[1642436010686,371.2710615,140.65,140.54,10.6672]
[1642436010885,371.2710615,140.65,140.54,16.9452]
[1642436011085,371.2710615,140.65,140.54,25.3852]
[1642436011286,6.0,140.7,140.54,25.3852]
[1642436011488,445.78128304,140.74,140.54,25.3852]
[1642436011985,10.6644,140.71,140.59,39.07790489]
[1642436012389,445.78128304,140.74,140.59,39.07790489]
[1642436012587,445.78128304,140.74,140.6,0.25]
[1642436012787,430.04138304,140.74,140.6,70.61]
[1642436012987,430.04138304,140.74,140.61,10.6621]
[1642436013186,430.04138304,140.74,140.61,81.0221]
[1642436013387,35.05455008,140.73,140.62,48.41597352]
[1642436013989,45.71755008,140.73,140.62,48.41597352]
[1642436014588,10.663,140.73,140.62,48.41597352]
[1642436014788,8.44,140.76,140.62,48.41597352]
[1642436015190,7.94,140.76,140.62,48.41597352]
[1642436015391,7.94,140.76,140.62,59.07757352]
[1642436015590,7.94,140.76,140.62,66.07757352]
[1642436015802,7.75619958,140.8,140.63,78.8]
[1642436015993,1.75619958,140.8,140.63,114.3251]
[1642436016293,338.93918951,140.82,140.64,1.72937132]
[1642436016493,338.93918951,140.82,140.67,10.6576]
[1642436016690,338.93918951,140.82,140.68,57.55564414]
[1642436016890,10.654,140.85,140.68,57.55564414]
[1642436017091,35.5108,140.89,140.7,35.5087]
[1642436017294,35.5108,140.89,140.71,8.44]
[1642436017693,37.30093922,140.88,140.72,38.50578003]
[1642436017893,37.30093922,140.88,140.73,8.44]
[1642436018094,10.19619958,140.91,140.74,10.6527]
[1642436018494,10.19619958,140.91,140.75,8.44]
[1642436018697,0.25,140.9,140.75,8.44]
[1642436018895,2.00619958,140.9,140.75,8.44]
[1642436019094,508.81820202,140.85,140.76,48.4936652]
[1642436019295,508.81820202,140.85,140.73,8.44]
[1642436019296,9.71377207,140.84,140.73,8.44]
[1642436019496,11.46997165,140.84,140.71,46.2271]
[1642436019697,9.71377207,140.84,140.71,54.6671]
[1642436019996,1.75619958,140.83,140.71,31.0455]
[1642436020199,10.6553,140.83,140.71,22.6055]
[1642436021197,47.90318382,140.82,140.72,43.26308078]
[1642436021599,10.6567,140.81,140.72,43.26308078]
[1642436023798,25.55344503,140.81,140.66,32.8966]
[1642436024821,0.25,140.8,140.67,46.7496705]
[1642436025025,10.6597,140.77,140.67,46.7496705]
[1642436025822,0.25,140.8,140.67,46.7496705]
[1642436026222,70.36,140.78,140.51,5.0]
[1642436026425,70.36,140.78,140.38,6.909]
[1642436026426,59.902,140.77,140.45,72.6225]
[1642436026622,51.462,140.73,140.45,72.6225]
[1642436026824,8.44,140.72,140.45,72.6225]
[1642436027026,20.97199048,140.72,140.45,72.6225]
[1642436027222,45.03904887,140.71,140.47,70.36]
[1642436027423,8.44,140.7,140.47,155.7444]
[1642436027626,21.22199048,140.7,140.47,155.7444]
[1642436027824,27.22199048,140.7,140.48,73.0095]
[1642436028026,12.53199048,140.69,140.49,43.02148223]
[1642436028227,19.49519873,140.68,140.49,43.02148223]
[1642436028424,8.44,140.68,140.5,70.36]
[1642436029227,8.44,140.68,140.51,8.44]
[1642436029626,8.44,140.68,140.52,115.48106931]
[1642436030028,70.36,140.67,140.52,45.12106931]
[1642436030426,8.44,140.66,140.52,45.12106931]
[1642436031628,8.44,140.66,140.53,70.36]
[1642436031828,12.82026217,140.7,140.53,70.36]
[1642436032030,8.44,140.69,140.53,70.36]
[1642436032629,447.33396718,140.71,140.53,78.8]
[1642436033430,78.41546757,140.7,140.53,8.44]
[1642436033629,89.08066757,140.7,140.52,45.12106931]
[1642436033829,26.00225265,140.69,140.52,45.12106931]
[1642436034030,8.44,140.68,140.52,45.12106931]
[1642436034231,1.45673268,140.67,140.52,45.12106931]
[1642436034430,8.44,140.66,140.52,45.12106931]
[1642436034830,10.6722,140.64,140.52,45.12106931]
[1642436035032,8.44,140.64,140.52,45.12106931]
[1642436036434,39.42284631,140.7,140.52,45.12106931]
[1642436036634,8.44,140.69,140.54,70.36]
[1642436036833,8.44,140.74,140.55,8.44]
[1642436037235,10.6639,140.72,140.55,8.44]
[1642436037434,42.89976233,140.7,140.56,42.5167647]
[1642436038234,10.664,140.72,140.56,42.5167647]
[1642436038435,8.44,140.74,140.56,42.5167647]
[1642436038735,55.7123921,140.75,140.56,42.5167647]
[1642436038936,55.7123921,140.75,140.57,8.44]
[1642436039136,35.13804422,140.74,140.57,8.44]
[1642436039337,35.13804422,140.74,140.58,70.36]
[1642436039540,35.13804422,140.74,140.59,47.97480821]
[1642436040539,10.6629,140.73,140.59,47.97480821]
[1642436041138,18.73190337,140.71,140.56,24.605]
[1642436041341,8.69,140.7,140.56,24.605]
[1642436041540,10.666,140.69,140.55,24.8702]
[1642436041740,31.92626217,140.69,140.55,24.8702]
[1642436042140,12.82026217,140.68,140.55,24.8702]
[1642436042342,47.95830639,140.68,140.56,34.79353163]
[1642436042643,8.44,140.67,140.56,34.79353163]
[1642436043441,70.36,140.66,140.56,34.79353163]
[1642436043641,29.40230337,140.65,140.56,34.79353163]
[1642436043941,28.90230337,140.65,140.56,34.29353163]
[1642436046044,28.90230337,140.65,140.5,23.3262]
[1642436046045,41.72256554,140.65,140.5,23.3262]
[1642436046245,10.6754,140.6,140.49,23.8491]
[1642436046446,16.9114,140.6,140.45,72.6225]
[1642436046944,16.9114,140.6,140.46,47.10526853]
[1642436047445,25.3514,140.6,140.46,47.10526853]
[1642436047846,18.73190337,140.57,140.46,47.10526853]
[1642436048046,81.0388,140.55,140.46,47.10526853]
[1642436048251,35.06984659,140.54,140.46,47.10526853]
[1642436048448,8.44,140.57,140.46,47.10526853]
[1642436049346,10.6783,140.54,140.46,47.10526853]
[1642436049549,16.89190764,140.53,140.46,47.10526853]
[1642436049946,16.89190764,140.53,140.4,70.7536]
[1642436050550,10.6799,140.51,140.4,70.7536]
[1642436050972,10.6799,140.51,140.41,40.61492144]
[1642436051573,37.47803995,140.5,140.41,40.61492144]
[1642436051773,10.6824,140.48,140.41,40.61492144]
[1642436053175,10.6846,140.45,140.38,0.065]
[1642436053378,18.2916,140.45,140.38,0.065]
[1642436054077,18.2916,140.45,140.38,46.35779565]
[1642436054476,10.6846,140.45,140.38,46.35779565]
[1642436054876,10.6846,140.45,140.38,0.065]
[1642436057177,10.6846,140.45,140.38,0.315]
[1642436057881,10.683,140.47,140.38,0.315]
[1642436058484,8.44,140.49,140.38,0.315]
[1642436059183,19.1212,140.49,140.38,10.9958]
[1642436059885,19.1212,140.49,140.38,0.315]
[1642436060086,38.18270707,140.48,140.38,0.315]
[1642436060686,38.18270707,140.48,140.38,0.065]
[1642436060885,44.18270707,140.48,140.38,0.065]
[1642436061088,81.0427,140.47,140.38,0.065]
[1642436061387,16.6827,140.47,140.38,0.065]
[1642436061785,25.1227,140.47,140.38,0.065]
[1642436061987,32.7557,140.47,140.38,0.065]
[1642436062587,32.7557,140.47,140.38,42.33952147]
[1642436062784,25.1227,140.47,140.38,42.33952147]
[1642436063191,25.1227,140.47,140.38,0.065]
[1642436063885,0.25,140.46,140.38,0.065]
[1642436064086,16.18724052,140.43,140.38,0.065]
[1642436064287,0.25,140.42,140.38,0.065]
[1642436064788,1.75619958,140.41,140.35,0.08571429]
[1642436064987,8.44,140.4,140.35,0.08571429]
[1642436065286,8.44,140.4,140.3,0.10715]
[1642436065287,66.6943,140.39,140.3,0.10715]
[1642436065489,46.62270707,140.38,140.3,0.10715]
[1642436066290,10.6935,140.36,140.3,0.10715]
[1642436066787,8.44,140.38,140.3,0.10715]
[1642436066989,47.3725,140.49,140.3,0.10715]
[1642436067190,8.44,140.44,140.3,5.55715]
[1642436067389,10.6867,140.42,140.3,5.55715]
[1642436067690,10.6867,140.42,140.31,0.25]
[1642436068087,10.6867,140.42,140.3,0.35715]
[1642436068492,10.6867,140.42,140.3,41.23734158]
[1642436069895,10.6867,140.42,140.3,40.98734158]
[1642436070697,10.6867,140.42,140.3,51.67524158]
[1642436070898,19.1252,140.44,140.3,51.67524158]
[1642436071101,8.44,140.47,140.31,0.25]
[1642436071703,409.6364801,140.45,140.33,42.55890826]
[1642436071899,428.7605801,140.45,140.34,0.25]
[1642436072200,60.19524673,140.45,140.34,0.25]
[1642436072400,66.19524673,140.45,140.34,0.25]
[1642436072799,67.95144631,140.45,140.3,0.35715]
[1642436073404,70.36,140.44,140.3,38.37362383]
[1642436073604,10.6892,140.4,140.3,38.37362383]
[1642436074008,10.6892,140.4,140.3,49.06182383]
[1642436074606,10.6892,140.4,140.3,38.37362383]
[1642436074805,16.6892,140.4,140.3,38.37362383]